[Event "*** Titled Tuesday Blitz"]
[Site "Chess.com"]
[Date "2020.12.01"]
[Round "11"]
[White "MFBerna"]
[Black "Chessdreamer2020"]
[Result "1-0"]
[WhiteElo "2444"]
[BlackElo "2515"]
[TimeControl "180+1"]
[EndTime "12:02:03 PST"]
[Termination "MFBerna won by resignation"]

1. e4 {[%clk 0:03:00.9]} 1... d6 {[%clk 0:02:58.3]} 2. d4 {[%clk 0:03:01.3]}
2... Nf6 {[%clk 0:02:58.5]} 3. Nc3 {[%clk 0:03:00.9]} 3... e5 {[%clk 0:02:59.1]}
4. Nf3 {[%clk 0:03:00]} 4... Nbd7 {[%clk 0:02:58]} 5. Bc4 {[%clk 0:03:00.2]}
5... Be7 {[%clk 0:02:58.5]} 6. O-O {[%clk 0:03:00.4]} 6... O-O {[%clk
0:02:59.1]} 7. Re1 {[%clk 0:02:59.5]} 7... c6 {[%clk 0:02:59.3]} 8. a4 {[%clk
0:02:59.8]} 8... a5 {[%clk 0:02:59.7]} 9. h3 {[%clk 0:02:58.5]} 9... exd4 {[%clk
0:02:59.8]} 10. Qxd4 {[%clk 0:02:57.5]} 10... Qc7 {[%clk 0:02:36.4]} 11. Bf4
{[%clk 0:02:51.2]} 11... Rd8 {[%clk 0:02:30.5]} 12. Rad1 {[%clk 0:02:48.3]}
12... Nf8 {[%clk 0:02:29.1]} 13. Ng5 {[%clk 0:02:40.8]} 13... Ne6 {[%clk
0:02:26.5]} 14. Nxe6 {[%clk 0:02:38.2]} 14... Bxe6 {[%clk 0:02:26]} 15. Bxe6
{[%clk 0:02:36.3]} 15... fxe6 {[%clk 0:02:25.8]} 16. Qc4 {[%clk 0:02:33.5]}
16... Kf7 {[%clk 0:02:18.2]} 17. e5 {[%clk 0:02:25]} 17... Nd5 {[%clk
0:02:14.3]} 18. Nxd5 {[%clk 0:02:12.7]} 18... exd5 {[%clk 0:02:14.2]} 19. Rxd5
{[%clk 0:02:12.7]} 19... Kf8 {[%clk 0:02:07.9]} 20. exd6 {[%clk 0:02:06]} 20...
Rxd6 {[%clk 0:02:02]} 21. Rxe7 {[%clk 0:01:52.5]} 21... Kxe7 {[%clk 0:01:51.1]}
22. Bxd6+ {[%clk 0:01:49.5]} 22... Qxd6 {[%clk 0:01:52]} 23. Rxd6 {[%clk
0:01:50.1]} 23... Kxd6 {[%clk 0:01:52.9]} 24. Qd4+ {[%clk 0:01:48.9]} 24... Kc7
{[%clk 0:01:53]} 25. Qxg7+ {[%clk 0:01:49.8]} 25... Kb6 {[%clk 0:01:53.1]} 26.
Qxh7 {[%clk 0:01:50.5]} 26... Rd8 {[%clk 0:01:53.5]} 27. g4 {[%clk 0:01:49.5]}
27... Rd1+ {[%clk 0:01:53.9]} 28. Kg2 {[%clk 0:01:49.6]} 28... Rb1 {[%clk
0:01:53.9]} 29. b3 {[%clk 0:01:49.4]} 1-0

[Event "*** Titled Tuesday Blitz"]
[Site "Chess.com"]
[Date "2020.12.01"]
[Round "11"]
[White "Blitzking642"]
[Black "Chuchofrio1"]
[Result "1-0"]
[WhiteElo "2245"]
[BlackElo "2398"]
[TimeControl "180+1"]
[EndTime "12:02:05 PST"]
[Termination "Blitzking642 won by checkmate"]

1. e4 {[%clk 0:03:00.9]} 1... e5 {[%clk 0:02:58.7]} 2. Nf3 {[%clk 0:02:57.8]}
2... Nc6 {[%clk 0:02:58.5]} 3. Bc4 {[%clk 0:02:58.3]} 3... Nf6 {[%clk
0:02:57.4]} 4. d3 {[%clk 0:02:57.7]} 4... Be7 {[%clk 0:02:57.5]} 5. O-O {[%clk
0:02:57.6]} 5... O-O {[%clk 0:02:57.3]} 6. Re1 {[%clk 0:02:58.1]} 6... d6 {[%clk
0:02:56.6]} 7. c3 {[%clk 0:02:56.7]} 7... Bg4 {[%clk 0:02:56.3]} 8. Nbd2 {[%clk
0:02:55.3]} 8... Kh8 {[%clk 0:02:54.1]} 9. h3 {[%clk 0:02:55]} 9... Bh5 {[%clk
0:02:53.9]} 10. Nf1 {[%clk 0:02:55.5]} 10... Na5 {[%clk 0:02:51.9]} 11. Bb5
{[%clk 0:02:52.9]} 11... a6 {[%clk 0:02:51.3]} 12. Ba4 {[%clk 0:02:53.4]} 12...
b5 {[%clk 0:02:51.6]} 13. Bc2 {[%clk 0:02:54]} 13... Nd7 {[%clk 0:02:52.5]} 14.
Ng3 {[%clk 0:02:54]} 14... Bg6 {[%clk 0:02:51.5]} 15. d4 {[%clk 0:02:54]} 15...
Nc4 {[%clk 0:02:31.9]} 16. b3 {[%clk 0:02:52.1]} 16... Ncb6 {[%clk 0:02:30.6]}
17. Be3 {[%clk 0:02:43.5]} 17... exd4 {[%clk 0:02:23.5]} 18. cxd4 {[%clk
0:02:42.1]} 18... c5 {[%clk 0:02:14.1]} 19. Qd2 {[%clk 0:02:39.1]} 19... Bf6
{[%clk 0:02:09.9]} 20. Rad1 {[%clk 0:02:38.3]} 20... Rc8 {[%clk 0:02:06.4]} 21.
e5 {[%clk 0:02:37.8]} 21... dxe5 {[%clk 0:02:05.7]} 22. dxc5 {[%clk 0:02:15.9]}
22... Bxc2 {[%clk 0:01:41.4]} 23. Qxc2 {[%clk 0:02:15.5]} 23... Qc7 {[%clk
0:01:41.4]} 24. b4 {[%clk 0:02:11.7]} 24... Nc4 {[%clk 0:01:40.9]} 25. Bc1
{[%clk 0:02:11.7]} 25... a5 {[%clk 0:01:38.9]} 26. a3 {[%clk 0:02:11.3]} 26...
Nb8 {[%clk 0:01:33.1]} 27. Ne4 {[%clk 0:02:10.8]} 27... Nc6 {[%clk 0:01:31.5]}
28. Nfg5 {[%clk 0:02:10.8]} 28... Bxg5 {[%clk 0:01:27.8]} 29. Nxg5 {[%clk
0:02:09.5]} 29... axb4 {[%clk 0:01:26.9]} 30. Qxh7# {[%clk 0:02:08.5]} 1-0

[Event "*** Titled Tuesday Blitz"]
[Site "Chess.com"]
[Date "2020.12.01"]
[Round "11"]
[White "Sergey85Rodchenkov"]
[Black "vovachesss"]
[Result "1-0"]
[WhiteElo "2466"]
[BlackElo "2597"]
[TimeControl "180+1"]
[EndTime "12:02:09 PST"]
[Termination "Sergey85Rodchenkov won by resignation"]

1. e4 {[%clk 0:03:00.9]} 1... e5 {[%clk 0:02:58.6]} 2. Nf3 {[%clk 0:03:00.4]}
2... d5 {[%clk 0:02:59.1]} 3. Nxe5 {[%clk 0:02:56.5]} 3... Bd6 {[%clk
0:02:59.1]} 4. d4 {[%clk 0:02:56.3]} 4... dxe4 {[%clk 0:02:59.2]} 5. Nc4 {[%clk
0:02:54]} 5... Nf6 {[%clk 0:02:59.1]} 6. Be2 {[%clk 0:02:53.3]} 6... O-O {[%clk
0:02:59.6]} 7. Nc3 {[%clk 0:02:53.4]} 7... Nc6 {[%clk 0:03:00.1]} 8. Nxd6 {[%clk
0:02:51]} 8... Qxd6 {[%clk 0:03:00.1]} 9. Be3 {[%clk 0:02:51.6]} 9... Rd8 {[%clk
0:03:00.3]} 10. O-O {[%clk 0:02:44.2]} 10... Nxd4 {[%clk 0:02:54.2]} 11. Bg5
{[%clk 0:02:21]} 11... Bf5 {[%clk 0:02:45.4]} 12. Re1 {[%clk 0:02:19.7]} 12...
Qe5 {[%clk 0:02:38.9]} 13. Qc1 {[%clk 0:02:16.9]} 13... h6 {[%clk 0:02:32]} 14.
Bh4 {[%clk 0:02:12.4]} 14... e3 {[%clk 0:02:21.9]} 15. Bd1 {[%clk 0:01:37.5]}
15... Ng4 {[%clk 0:02:19.1]} 16. Bxg4 {[%clk 0:01:35.1]} 16... Bxg4 {[%clk
0:02:06]} 17. Rxe3 {[%clk 0:01:31.3]} 17... Bf5 {[%clk 0:02:03.9]} 18. Rxe5
{[%clk 0:01:30]} 1-0

[Event "*** Titled Tuesday Blitz"]
[Site "Chess.com"]
[Date "2020.12.01"]
[Round "11"]
[White "AliKa2810"]
[Black "PlotnikovPavel"]
[Result "1-0"]
[WhiteElo "2590"]
[BlackElo "2478"]
[TimeControl "180+1"]
[EndTime "12:02:17 PST"]
[Termination "AliKa2810 won by checkmate"]

1. d4 {[%clk 0:03:00.9]} 1... Nf6 {[%clk 0:02:59.3]} 2. c4 {[%clk 0:03:01.5]}
2... g6 {[%clk 0:02:59.8]} 3. Nc3 {[%clk 0:03:01.7]} 3... Bg7 {[%clk 0:03:00.5]}
4. e4 {[%clk 0:03:02.1]} 4... O-O {[%clk 0:03:01.2]} 5. f4 {[%clk 0:03:02.4]}
5... d6 {[%clk 0:03:01.6]} 6. Nf3 {[%clk 0:03:02.9]} 6... Na6 {[%clk 0:03:02]}
7. e5 {[%clk 0:03:00.9]} 7... dxe5 {[%clk 0:03:01.4]} 8. fxe5 {[%clk 0:03:00.9]}
8... Nd7 {[%clk 0:03:01.7]} 9. Bf4 {[%clk 0:02:52.6]} 9... c5 {[%clk 0:03:01.3]}
10. d5 {[%clk 0:02:51.6]} 10... f6 {[%clk 0:02:57.6]} 11. e6 {[%clk 0:02:49.6]}
11... Ne5 {[%clk 0:02:58.1]} 12. Nxe5 {[%clk 0:02:35]} 12... fxe5 {[%clk
0:02:58.2]} 13. Be3 {[%clk 0:02:31.8]} 13... e4 {[%clk 0:02:52.2]} 14. Qd2
{[%clk 0:02:31]} 14... Qb6 {[%clk 0:02:46.7]} 15. Be2 {[%clk 0:02:27.9]} 15...
Rd8 {[%clk 0:02:36.2]} 16. Qc2 {[%clk 0:02:19.1]} 16... Qb4 {[%clk 0:02:23.4]}
17. O-O {[%clk 0:02:16]} 17... b6 {[%clk 0:02:07.4]} 18. a3 {[%clk 0:02:13.1]}
18... Qa5 {[%clk 0:02:05]} 19. Nxe4 {[%clk 0:02:12.3]} 19... Bb7 {[%clk
0:02:05.2]} 20. Bd2 {[%clk 0:02:10.2]} 20... Bd4+ {[%clk 0:02:02.4]} 21. Kh1
{[%clk 0:02:10]} 21... Nb4 {[%clk 0:01:55]} 22. axb4 {[%clk 0:02:09.6]} 22...
Qxa1 {[%clk 0:01:54.8]} 23. Rxa1 {[%clk 0:02:08.9]} 23... cxb4 {[%clk
0:01:53.7]} 24. Bxb4 {[%clk 0:02:08.1]} 24... Rdc8 {[%clk 0:01:54.6]} 25. Qd2
{[%clk 0:02:02.1]} 25... Bc5 {[%clk 0:01:52.1]} 26. Bc3 {[%clk 0:02:01.9]} 26...
Rf8 {[%clk 0:01:51.2]} 27. Qh6 {[%clk 0:02:01.6]} 27... Rf7 {[%clk 0:01:47.5]}
28. Ng5 {[%clk 0:01:59.2]} 28... Bxd5 {[%clk 0:01:42.9]} 29. cxd5 {[%clk
0:01:58]} 29... Bd4 {[%clk 0:01:40.3]} 30. exf7+ {[%clk 0:01:57.4]} 30... Kh8
{[%clk 0:01:40.3]} 31. Bxd4+ {[%clk 0:01:57.5]} 31... e5 {[%clk 0:01:38.5]} 32.
Bxe5# {[%clk 0:01:55.5]} 1-0

[Event "*** Titled Tuesday Blitz"]
[Site "Chess.com"]
[Date "2020.12.01"]
[Round "11"]
[White "redbaron8888"]
[Black "jacky72"]
[Result "0-1"]
[WhiteElo "2568"]
[BlackElo "2724"]
[TimeControl "180+1"]
[EndTime "12:02:19 PST"]
[Termination "jacky72 won by resignation"]

1. d4 {[%clk 0:03:00.9]} 1... Nf6 {[%clk 0:02:58.9]} 2. c4 {[%clk 0:02:59.9]}
2... g6 {[%clk 0:02:59.1]} 3. Nc3 {[%clk 0:02:59.3]} 3... Bg7 {[%clk 0:03:00]}
4. e4 {[%clk 0:02:58.6]} 4... O-O {[%clk 0:03:00.9]} 5. Be2 {[%clk 0:02:58.6]}
5... d6 {[%clk 0:03:01.8]} 6. Bg5 {[%clk 0:02:57.8]} 6... Na6 {[%clk 0:03:00]}
7. Qd2 {[%clk 0:02:56.5]} 7... e5 {[%clk 0:02:53.3]} 8. d5 {[%clk 0:02:53.6]}
8... Qe8 {[%clk 0:02:53.7]} 9. O-O-O {[%clk 0:02:48.6]} 9... Nc5 {[%clk
0:02:46.5]} 10. f3 {[%clk 0:02:47.2]} 10... Nh5 {[%clk 0:02:41.8]} 11. Be3
{[%clk 0:02:46.6]} 11... Bd7 {[%clk 0:02:37.1]} 12. g3 {[%clk 0:02:43.7]} 12...
a6 {[%clk 0:02:36.5]} 13. Kb1 {[%clk 0:02:37.8]} 13... b5 {[%clk 0:02:36.3]} 14.
Rc1 {[%clk 0:02:34]} 14... Rb8 {[%clk 0:02:30.4]} 15. cxb5 {[%clk 0:02:24.6]}
15... axb5 {[%clk 0:02:27.4]} 16. b4 {[%clk 0:02:24.2]} 16... Na4 {[%clk
0:02:25.4]} 17. Nxa4 {[%clk 0:02:23.9]} 17... bxa4 {[%clk 0:02:26.3]} 18. a3
{[%clk 0:02:23.2]} 18... Rc8 {[%clk 0:02:17.9]} 19. Ba6 {[%clk 0:02:18.5]} 19...
Ra8 {[%clk 0:02:17.7]} 20. Bd3 {[%clk 0:02:17.2]} 20... c6 {[%clk 0:02:15.6]}
21. Bc4 {[%clk 0:02:14.9]} 21... cxd5 {[%clk 0:02:09.4]} 22. Bxd5 {[%clk
0:02:14.5]} 22... Rc8 {[%clk 0:02:08.5]} 23. Ne2 {[%clk 0:02:14]} 23... Kh8
{[%clk 0:02:08.8]} 24. Rxc8 {[%clk 0:02:11.8]} 24... Bxc8 {[%clk 0:02:07.4]} 25.
Rc1 {[%clk 0:02:12.7]} 25... f5 {[%clk 0:02:06.6]} 26. Rc7 {[%clk 0:02:06.9]}
26... fxe4 {[%clk 0:02:04.9]} 27. Bxe4 {[%clk 0:02:06.4]} 27... Qe6 {[%clk
0:01:57.1]} 28. Qd5 {[%clk 0:01:48]} 28... Nf6 {[%clk 0:01:57.1]} 29. Qxe6
{[%clk 0:01:43.3]} 29... Bxe6 {[%clk 0:01:58]} 30. Bc2 {[%clk 0:01:40.6]} 30...
Nd5 {[%clk 0:01:57.1]} 0-1

[Event "*** Titled Tuesday Blitz"]
[Site "Chess.com"]
[Date "2020.12.01"]
[Round "11"]
[White "bazar-wokzal"]
[Black "GMSrinath"]
[Result "0-1"]
[WhiteElo "2542"]
[BlackElo "2784"]
[TimeControl "180+1"]
[EndTime "12:02:37 PST"]
[Termination "GMSrinath won by resignation"]

1. e4 {[%clk 0:03:00.9]} 1... c5 {[%clk 0:02:58.5]} 2. c3 {[%clk 0:03:01]} 2...
Nf6 {[%clk 0:02:57.3]} 3. e5 {[%clk 0:03:01.3]} 3... Nd5 {[%clk 0:02:57.4]} 4.
d4 {[%clk 0:03:02.2]} 4... cxd4 {[%clk 0:02:57.9]} 5. cxd4 {[%clk 0:03:02.9]}
5... g6 {[%clk 0:02:57.6]} 6. Nc3 {[%clk 0:03:02.3]} 6... Nxc3 {[%clk
0:02:57.3]} 7. bxc3 {[%clk 0:03:03.2]} 7... Bg7 {[%clk 0:02:58.2]} 8. h4 {[%clk
0:03:02.4]} 8... d6 {[%clk 0:02:57.3]} 9. f4 {[%clk 0:03:01.7]} 9... h5 {[%clk
0:02:52.4]} 10. Bd3 {[%clk 0:03:01.4]} 10... dxe5 {[%clk 0:02:52.1]} 11. fxe5
{[%clk 0:03:01.2]} 11... Bg4 {[%clk 0:02:50.8]} 12. Nf3 {[%clk 0:02:51.4]} 12...
Nc6 {[%clk 0:02:51.3]} 13. O-O {[%clk 0:02:50.4]} 13... Rc8 {[%clk 0:02:50.2]}
14. Qb3 {[%clk 0:02:35.3]} 14... O-O {[%clk 0:02:46.6]} 15. Ng5 {[%clk
0:02:26.9]} 15... e6 {[%clk 0:02:43]} 16. Be4 {[%clk 0:02:09.5]} 16... Na5
{[%clk 0:02:28.2]} 17. Qc2 {[%clk 0:01:57.6]} 17... Nc4 {[%clk 0:02:20.3]} 18.
Bxg6 {[%clk 0:01:52.5]} 18... fxg6 {[%clk 0:02:21.2]} 19. Qxg6 {[%clk
0:01:32.3]} 19... Rxf1+ {[%clk 0:02:19.2]} 20. Kxf1 {[%clk 0:01:32.2]} 20...
Qf8+ {[%clk 0:02:19.4]} 21. Kg1 {[%clk 0:01:29.9]} 21... Qf5 {[%clk 0:02:20.3]}
22. Qxf5 {[%clk 0:01:27.1]} 22... Bxf5 {[%clk 0:02:21.2]} 23. Bf4 {[%clk
0:01:22.6]} 23... Nb2 {[%clk 0:02:19.7]} 24. Bd2 {[%clk 0:01:20.8]} 24... Nc4
{[%clk 0:02:17.1]} 25. Bf4 {[%clk 0:01:20.6]} 25... Rc6 {[%clk 0:02:17.4]} 26.
a4 {[%clk 0:01:09.3]} 26... Rb6 {[%clk 0:02:17.5]} 27. Ra2 {[%clk 0:01:08.8]}
27... Rb3 {[%clk 0:02:13.6]} 28. Bd2 {[%clk 0:01:02.3]} 28... Bb1 {[%clk
0:02:09.6]} 0-1

[Event "*** Titled Tuesday Blitz"]
[Site "Chess.com"]
[Date "2020.12.01"]
[Round "11"]
[White "WelshTiger"]
[Black "Chernov_Mikhail"]
[Result "0-1"]
[WhiteElo "2426"]
[BlackElo "2310"]
[TimeControl "180+1"]
[EndTime "12:02:58 PST"]
[Termination "Chernov_Mikhail won by checkmate"]

1. e4 {[%clk 0:03:00.9]} 1... c5 {[%clk 0:02:59.7]} 2. Nf3 {[%clk 0:02:57.4]}
2... Nc6 {[%clk 0:02:59.9]} 3. c3 {[%clk 0:02:55.2]} 3... Nf6 {[%clk 0:02:59.7]}
4. e5 {[%clk 0:02:54.5]} 4... Nd5 {[%clk 0:03:00.3]} 5. d4 {[%clk 0:02:54.9]}
5... cxd4 {[%clk 0:03:01.2]} 6. Bc4 {[%clk 0:02:52.2]} 6... Nb6 {[%clk
0:03:00.9]} 7. Bxf7+ {[%clk 0:02:31.5]} 7... Kxf7 {[%clk 0:02:58.4]} 8. cxd4
{[%clk 0:01:44.3]} 8... e6 {[%clk 0:02:46.9]} 9. O-O {[%clk 0:01:39.4]} 9... Be7
{[%clk 0:02:44.6]} 10. Nc3 {[%clk 0:01:39]} 10... Rf8 {[%clk 0:02:43.1]} 11. Ne4
{[%clk 0:01:34]} 11... Kg8 {[%clk 0:02:42.4]} 12. Qd3 {[%clk 0:01:27.9]} 12...
Nd5 {[%clk 0:02:22]} 13. Neg5 {[%clk 0:01:22.2]} 13... Rf5 {[%clk 0:02:12.7]}
14. Nxh7 {[%clk 0:01:16.9]} 14... Qe8 {[%clk 0:01:45.2]} 15. g4 {[%clk
0:01:14.9]} 15... Rxf3 {[%clk 0:01:42.9]} 16. Qxf3 {[%clk 0:01:14.3]} 16... Kxh7
{[%clk 0:01:42.9]} 17. Be3 {[%clk 0:00:58.6]} 17... b6 {[%clk 0:01:36.4]} 18.
Qe4+ {[%clk 0:00:55.1]} 18... Qg6 {[%clk 0:01:35.5]} 19. f4 {[%clk 0:00:56]}
19... Qxe4 {[%clk 0:01:35.3]} 20. Rae1 {[%clk 0:00:54.4]} 20... Nxe3 {[%clk
0:01:34]} 21. d5 {[%clk 0:00:51.9]} 21... Qg2# {[%clk 0:01:33.4]} 0-1

[Event "*** Titled Tuesday Blitz"]
[Site "Chess.com"]
[Date "2020.12.01"]
[Round "11"]
[White "hansen"]
[Black "Gurvich_Vitaly"]
[Result "1-0"]
[WhiteElo "2892"]
[BlackElo "2614"]
[TimeControl "180+1"]
[EndTime "12:03:05 PST"]
[Termination "hansen won by resignation"]

1. e4 {[%clk 0:02:44.5]} 1... c5 {[%clk 0:02:57.6]} 2. d4 {[%clk 0:02:38.6]}
2... cxd4 {[%clk 0:02:58.5]} 3. c3 {[%clk 0:02:33.7]} 3... d3 {[%clk 0:02:58.4]}
4. Bxd3 {[%clk 0:02:32.4]} 4... Nc6 {[%clk 0:02:59.3]} 5. c4 {[%clk 0:02:32.5]}
5... g6 {[%clk 0:02:59.5]} 6. h3 {[%clk 0:02:32.3]} 6... Bg7 {[%clk 0:02:59.6]}
7. Nf3 {[%clk 0:02:32.8]} 7... d6 {[%clk 0:02:59.7]} 8. O-O {[%clk 0:02:33.1]}
8... b6 {[%clk 0:02:59.2]} 9. Nc3 {[%clk 0:02:32.9]} 9... Bb7 {[%clk 0:02:59.5]}
10. Bf4 {[%clk 0:02:31.3]} 10... Nf6 {[%clk 0:02:58.7]} 11. Qe2 {[%clk
0:02:31.3]} 11... Nd7 {[%clk 0:02:57.2]} 12. Rad1 {[%clk 0:02:30]} 12... O-O
{[%clk 0:02:56.3]} 13. Nd5 {[%clk 0:02:14.8]} 13... Nde5 {[%clk 0:02:50.9]} 14.
Nxe5 {[%clk 0:02:12.9]} 14... dxe5 {[%clk 0:02:51]} 15. Bg5 {[%clk 0:02:11.4]}
15... f6 {[%clk 0:02:50.8]} 16. Be3 {[%clk 0:02:11.1]} 16... e6 {[%clk 0:02:51]}
17. Nc3 {[%clk 0:02:07.7]} 17... Nd4 {[%clk 0:02:49.9]} 18. Qe1 {[%clk 0:02:04]}
18... Rf7 {[%clk 0:02:49.5]} 19. f4 {[%clk 0:01:58.3]} 19... Rd7 {[%clk
0:02:44.8]} 20. fxe5 {[%clk 0:01:36.3]} 20... fxe5 {[%clk 0:02:45.7]} 21. Qg3
{[%clk 0:01:36.1]} 21... Nf5 {[%clk 0:02:18]} 22. exf5 {[%clk 0:01:32.6]} 22...
Rxd3 {[%clk 0:02:17.3]} 23. Rxd3 {[%clk 0:01:28.3]} 23... Qxd3 {[%clk
0:02:18.2]} 24. f6 {[%clk 0:01:28.7]} 24... Rf8 {[%clk 0:01:14]} 25. Rd1 {[%clk
0:01:27.1]} 25... Qxc4 {[%clk 0:01:08.8]} 26. fxg7 {[%clk 0:01:27]} 26... Re8
{[%clk 0:01:07.4]} 27. Bh6 {[%clk 0:01:23.3]} 1-0

[Event "*** Titled Tuesday Blitz"]
[Site "Chess.com"]
[Date "2020.12.01"]
[Round "11"]
[White "davidkalashian"]
[Black "RD4ever"]
[Result "0-1"]
[WhiteElo "2581"]
[BlackElo "2812"]
[TimeControl "180+1"]
[EndTime "12:03:08 PST"]
[Termination "RD4ever won by resignation"]

1. e4 {[%clk 0:03:00]} 1... c5 {[%clk 0:02:56]} 2. Nc3 {[%clk 0:02:59.3]} 2...
Nc6 {[%clk 0:02:56]} 3. Nf3 {[%clk 0:02:58.5]} 3... g6 {[%clk 0:02:55.9]} 4. d4
{[%clk 0:02:57.2]} 4... cxd4 {[%clk 0:02:56.8]} 5. Nxd4 {[%clk 0:02:57.9]} 5...
Bg7 {[%clk 0:02:57.7]} 6. Be3 {[%clk 0:02:58.1]} 6... Nf6 {[%clk 0:02:57.9]} 7.
Bc4 {[%clk 0:02:54.9]} 7... O-O {[%clk 0:02:57.3]} 8. Bb3 {[%clk 0:02:54.8]}
8... Re8 {[%clk 0:02:57.6]} 9. f3 {[%clk 0:02:44.3]} 9... e6 {[%clk 0:02:55]}
10. Nxc6 {[%clk 0:02:36.8]} 10... bxc6 {[%clk 0:02:52.6]} 11. Qd6 {[%clk
0:02:07.1]} 11... Nd5 {[%clk 0:02:51.3]} 12. exd5 {[%clk 0:01:59.8]} 12... exd5
{[%clk 0:02:48.4]} 13. Kf2 {[%clk 0:01:58.6]} 13... d4 {[%clk 0:02:47.7]} 14.
Bxd4 {[%clk 0:01:46.1]} 14... Qh4+ {[%clk 0:02:46.3]} 15. g3 {[%clk 0:01:45.8]}
15... Qxd4+ {[%clk 0:02:35.5]} 16. Qxd4 {[%clk 0:01:44.8]} 16... Bxd4+ {[%clk
0:02:36.4]} 17. Kg2 {[%clk 0:01:44.6]} 17... Bxc3 {[%clk 0:02:20]} 18. bxc3
{[%clk 0:01:45.5]} 18... Re2+ {[%clk 0:02:19.4]} 19. Kf1 {[%clk 0:01:45.2]}
19... Ba6 {[%clk 0:02:12.3]} 20. c4 {[%clk 0:01:30.4]} 20... Rae8 {[%clk
0:02:10.5]} 21. h4 {[%clk 0:00:36.8]} 21... d5 {[%clk 0:02:09.2]} 22. Kg1 {[%clk
0:00:35.8]} 22... dxc4 {[%clk 0:02:01]} 23. Ba4 {[%clk 0:00:35.6]} 23... Bb5
{[%clk 0:02:01.7]} 24. Bxb5 {[%clk 0:00:35.2]} 24... cxb5 {[%clk 0:02:02.6]} 0-1

[Event "*** Titled Tuesday Blitz"]
[Site "Chess.com"]
[Date "2020.12.01"]
[Round "11"]
[White "ObidObad"]
[Black "Vandros57"]
[Result "1/2-1/2"]
[WhiteElo "2285"]
[BlackElo "2162"]
[TimeControl "180+1"]
[EndTime "12:03:41 PST"]
[Termination "Game drawn by repetition"]

1. Nh3 {[%clk 0:02:59.9]} 1... d5 {[%clk 0:02:57.4]} 2. Nf4 {[%clk 0:02:58.8]}
2... Nf6 {[%clk 0:02:53.7]} 3. d4 {[%clk 0:02:57.9]} 3... Bf5 {[%clk 0:02:49.8]}
4. e3 {[%clk 0:02:57.1]} 4... e6 {[%clk 0:02:48.3]} 5. c4 {[%clk 0:02:56.9]}
5... c6 {[%clk 0:02:46.6]} 6. Nc3 {[%clk 0:02:57]} 6... Nbd7 {[%clk 0:02:43]} 7.
Bd3 {[%clk 0:02:51.7]} 7... Bxd3 {[%clk 0:02:41.1]} 8. Qxd3 {[%clk 0:02:47.6]}
8... Bd6 {[%clk 0:02:39.7]} 9. Nfe2 {[%clk 0:02:44.2]} 9... O-O {[%clk
0:02:37.5]} 10. f4 {[%clk 0:02:26.6]} 10... Qe7 {[%clk 0:02:26.7]} 11. c5 {[%clk
0:02:26.6]} 11... Bc7 {[%clk 0:02:24.8]} 12. Ng1 {[%clk 0:02:26.8]} 12... Ne4
{[%clk 0:02:14.8]} 13. Nxe4 {[%clk 0:02:25.9]} 13... dxe4 {[%clk 0:02:14.1]} 14.
Qxe4 {[%clk 0:02:26.8]} 14... f5 {[%clk 0:02:10.3]} 15. Qd3 {[%clk 0:02:25.4]}
15... Nf6 {[%clk 0:02:09.2]} 16. Nf3 {[%clk 0:02:25.2]} 16... Ne4 {[%clk
0:02:06.7]} 17. O-O {[%clk 0:02:22.3]} 17... a6 {[%clk 0:01:58.7]} 18. Nd2
{[%clk 0:02:14.3]} 18... Nxd2 {[%clk 0:01:48.7]} 19. Bxd2 {[%clk 0:02:15.2]}
19... Rad8 {[%clk 0:01:46.8]} 20. Qc4 {[%clk 0:02:14.4]} 20... Qd7 {[%clk
0:01:44.5]} 21. Rae1 {[%clk 0:02:09.6]} 21... Qd5 {[%clk 0:01:43.8]} 22. Qxd5
{[%clk 0:02:09.3]} 22... exd5 {[%clk 0:01:43.1]} 23. Bc3 {[%clk 0:02:10]} 23...
Rd7 {[%clk 0:01:41.6]} 24. Rf3 {[%clk 0:02:09.6]} 24... Re8 {[%clk 0:01:41.1]}
25. h3 {[%clk 0:02:09.4]} 25... g6 {[%clk 0:01:39.8]} 26. Kf2 {[%clk 0:02:09.4]}
26... h5 {[%clk 0:01:37.8]} 27. g4 {[%clk 0:02:09.2]} 27... hxg4 {[%clk
0:01:36.9]} 28. hxg4 {[%clk 0:02:09.9]} 28... Rh7 {[%clk 0:01:36.7]} 29. gxf5
{[%clk 0:02:08.4]} 29... gxf5 {[%clk 0:01:36]} 30. Rg1+ {[%clk 0:02:08.3]} 30...
Kf7 {[%clk 0:01:35.6]} 31. Rfg3 {[%clk 0:02:08.4]} 31... Rh2+ {[%clk 0:01:24.6]}
32. Kf3 {[%clk 0:02:06.7]} 32... Rh7 {[%clk 0:01:19.7]} 33. Rg5 {[%clk
0:02:06.6]} 33... Kf6 {[%clk 0:01:17.6]} 34. Be1 {[%clk 0:02:05.6]} 34... Rh3+
{[%clk 0:01:12.4]} 35. R5g3 {[%clk 0:02:03.9]} 35... Rxg3+ {[%clk 0:01:11.3]}
36. Bxg3 {[%clk 0:02:04]} 36... Rh8 {[%clk 0:01:09.8]} 37. Rg2 {[%clk
0:01:58.6]} 37... Ba5 {[%clk 0:01:07.5]} 38. Rh2 {[%clk 0:01:58.2]} 38... Rxh2
{[%clk 0:01:06]} 39. Bxh2 {[%clk 0:01:59.1]} 39... Kg6 {[%clk 0:01:05.6]} 40.
Kg3 {[%clk 0:01:57.8]} 40... Kh5 {[%clk 0:01:05.6]} 41. Kh3 {[%clk 0:01:56.6]}
41... Bd2 {[%clk 0:01:04.9]} 42. Bg1 {[%clk 0:01:57.1]} 42... Bc1 {[%clk
0:01:04.1]} 43. b3 {[%clk 0:01:56.8]} 43... Bd2 {[%clk 0:01:03.7]} 44. Bf2
{[%clk 0:01:56]} 44... Bc1 {[%clk 0:01:03]} 45. a4 {[%clk 0:01:55.9]} 45... Bd2
{[%clk 0:01:02.4]} 46. Kg3 {[%clk 0:01:55.3]} 46... Ba5 {[%clk 0:01:00.2]} 47.
Kh3 {[%clk 0:01:55.6]} 47... Bd2 {[%clk 0:00:59.5]} 48. Kg3 {[%clk 0:01:55.8]}
48... Ba5 {[%clk 0:00:59.1]} 49. Kh3 {[%clk 0:01:56.2]} 49... Bd2 {[%clk
0:00:58.7]} 1/2-1/2